[Event "MCR rapid mládeže 2023 U16"]
[Site "Harachov, Czech Republic"]
[Date "2023.09.09"]
[Round "5.21"]
[White "Zimovcak, Krystof"]
[Black "Kozdon, Marek"]
[Result "0-1"]
[TimeControl "20min+5s/move"]
[WhiteElo "1325"]
[BlackElo "1548"]

1. e4 {[%clk 00:20:06]} {[%emt 00:00:04]} c5 {[%clk 00:20:07]} {[%emt
00:00:04]} 2. Nc3 {[%clk 00:20:09]} {[%emt 00:00:02]} e6 {[%clk 00:20:09]}
{[%emt 00:00:02]} 3. Bc4 {[%clk 00:20:12]} {[%emt 00:00:01]} a6 {[%clk
00:20:12]} {[%emt 00:00:03]} 4. a4 {[%clk 00:20:16]} {[%emt 00:00:01]} Qc7
{[%clk 00:20:09]} {[%emt 00:00:08]} 5. Nf3 {[%clk 00:20:15]} {[%emt 00:00:06]}
b6 {[%clk 00:20:04]} {[%emt 00:00:11]} 6. d3 {[%clk 00:20:15]} {[%emt
00:00:04]} Bb7 {[%clk 00:20:04]} {[%emt 00:00:06]} 7. Be3 {[%clk 00:19:53]}
{[%emt 00:00:26]} d6 {[%clk 00:20:01]} {[%emt 00:00:08]} 8. d4 {[%clk
00:19:48]} {[%emt 00:00:10]} cxd4 {[%clk 00:19:56]} {[%emt 00:00:10]} 9. Qxd4
{[%clk 00:19:41]} {[%emt 00:00:11]} Nd7 {[%clk 00:19:57]} {[%emt 00:00:04]} 10.
Bb3 {[%clk 00:19:29]} {[%emt 00:00:17]} Ngf6 {[%clk 00:19:55]} {[%emt
00:00:08]} 11. O-O {[%clk 00:18:17]} {[%emt 00:01:16]} Be7 {[%clk 00:19:47]}
{[%emt 00:00:13]} 12. Ng5 {[%clk 00:16:00]} {[%emt 00:02:21]} h6 {[%clk
00:19:38]} {[%emt 00:00:15]} 13. Nf3 {[%clk 00:15:03]} {[%emt 00:01:02]} Rc8
{[%clk 00:19:11]} {[%emt 00:00:33]} 14. Qd3 {[%clk 00:14:01]} {[%emt 00:01:07]}
Nc5 {[%clk 00:19:04]} {[%emt 00:00:11]} 15. Bxc5 {[%clk 00:14:04]} {[%emt
00:00:03]} Qxc5 {[%clk 00:19:06]} {[%emt 00:00:03]} 16. Rae1 {[%clk 00:13:04]}
{[%emt 00:01:04]} O-O {[%clk 00:18:13]} {[%emt 00:00:58]} 17. Nd4 {[%clk
00:12:40]} {[%emt 00:00:30]} Qe5 {[%clk 00:17:17]} {[%emt 00:01:00]} 18. f4
{[%clk 00:11:56]} {[%emt 00:00:49]} Qc5 {[%clk 00:17:18]} {[%emt 00:00:05]} 19.
Kh1 {[%clk 00:11:50]} {[%emt 00:00:10]} d5 {[%clk 00:16:32]} {[%emt 00:00:51]}
20. exd5 {[%clk 00:11:26]} {[%emt 00:00:29]} Nxd5 {[%clk 00:16:20]} {[%emt
00:00:17]} 21. Bxd5 {[%clk 00:11:14]} {[%emt 00:00:18]} Bxd5 {[%clk 00:16:15]}
{[%emt 00:00:10]} 22. Nxd5 {[%clk 00:10:51]} {[%emt 00:00:28]} Qxd5 {[%clk
00:16:16]} {[%emt 00:00:04]} 23. b3 {[%clk 00:10:52]} {[%emt 00:00:04]} Rfd8
{[%clk 00:15:53]} {[%emt 00:00:27]} 24. Rd1 {[%clk 00:10:16]} {[%emt 00:00:41]}
Qb7 {[%clk 00:15:13]} {[%emt 00:00:45]} 25. Qf3 {[%clk 00:09:42]} {[%emt
00:00:39]} Qxf3 {[%clk 00:15:05]} {[%emt 00:00:13]} 26. Rxf3 {[%clk 00:08:08]}
{[%emt 00:01:39]} Bf6 {[%clk 00:14:54]} {[%emt 00:00:16]} 27. c3 {[%clk
00:06:47]} {[%emt 00:01:26]} Bxd4 {[%clk 00:14:34]} {[%emt 00:00:26]} 28. cxd4
{[%clk 00:06:29]} {[%emt 00:00:22]} Rxd4 {[%clk 00:14:37]} {[%emt 00:00:03]} 29.
Rb1 {[%clk 00:06:18]} {[%emt 00:00:13]} Rcd8 {[%clk 00:14:37]} {[%emt
00:00:07]} 30. h3 {[%clk 00:06:03]} {[%emt 00:00:19]} Rd1+ {[%clk 00:14:41]}
{[%emt 00:00:02]} 31. Rxd1 {[%clk 00:06:06]} {[%emt 00:00:01]} Rxd1+ {[%clk
00:14:44]} {[%emt 00:00:01]} 32. Kh2 {[%clk 00:06:11]} Kf8 {[%clk 00:14:36]}
{[%emt 00:00:15]} 33. Rc3 {[%clk 00:06:14]} {[%emt 00:00:01]} Ke7 {[%clk
00:14:37]} {[%emt 00:00:04]} 34. Rc6 {[%clk 00:06:17]} {[%emt 00:00:02]} Rd6
{[%clk 00:14:36]} {[%emt 00:00:06]} 35. Rc7+ {[%clk 00:06:17]} {[%emt
00:00:05]} Kf6 {[%clk 00:14:40]} 36. Rb7 {[%clk 00:05:52]} {[%emt 00:00:29]}
Rc6 {[%clk 00:14:24]} {[%emt 00:00:22]} 37. h4 {[%clk 00:05:26]} {[%emt
00:00:31]} Rd6 {[%clk 00:14:23]} {[%emt 00:00:06]} 38. g3 {[%clk 00:05:27]}
{[%emt 00:00:04]} h5 {[%clk 00:14:13]} {[%emt 00:00:15]} 39. Kg2 {[%clk
00:04:42]} {[%emt 00:00:49]} Kg6 {[%clk 00:14:00]} {[%emt 00:00:20]} 40. Kf2
{[%clk 00:04:15]} {[%emt 00:00:32]} f6 {[%clk 00:13:56]} {[%emt 00:00:09]} 41.
Ke3 {[%clk 00:03:59]} {[%emt 00:00:20]} a5 {[%clk 00:13:36]} {[%emt 00:00:26]}
42. Ke4 {[%clk 00:03:33]} {[%emt 00:00:30]} Kh6 {[%clk 00:13:05]} {[%emt
00:00:36]} 43. Ke3 {[%clk 00:03:35]} {[%emt 00:00:03]} Kh7 {[%clk 00:13:08]}
{[%emt 00:00:02]} 44. Kf3 {[%clk 00:03:29]} {[%emt 00:00:10]} Rc6 {[%clk
00:13:04]} {[%emt 00:00:10]} 45. Kg2 {[%clk 00:03:11]} {[%emt 00:00:23]} Rd6
{[%clk 00:12:56]} {[%emt 00:00:13]} 46. Kh2 {[%clk 00:03:08]} {[%emt 00:00:08]}
Kg6 {[%clk 00:12:53]} {[%emt 00:00:08]} 47. Kh3 {[%clk 00:03:12]} {[%emt
00:00:01]} e5 {[%clk 00:12:52]} {[%emt 00:00:07]} 48. fxe5 {[%clk 00:02:55]}
{[%emt 00:00:22]} fxe5 {[%clk 00:12:55]} {[%emt 00:00:02]} 49. Rc7 {[%clk
00:02:35]} {[%emt 00:00:24]} Kf6 {[%clk 00:12:41]} {[%emt 00:00:19]} 50. Kg2
{[%clk 00:02:27]} {[%emt 00:00:13]} g6 {[%clk 00:12:23]} {[%emt 00:00:23]} 51.
Kf2 {[%clk 00:02:23]} {[%emt 00:00:09]} Kf5 {[%clk 00:12:18]} {[%emt 00:00:09]}
52. Rc3 {[%clk 00:01:38]} {[%emt 00:00:51]} Kg4 {[%clk 00:11:44]} {[%emt
00:00:39]} 53. Rc4+ {[%clk 00:01:15]} {[%emt 00:00:29]} Kf5 {[%clk 00:11:35]}
{[%emt 00:00:13]} 54. Ke2 {[%clk 00:00:56]} {[%emt 00:00:23]} e4 {[%clk
00:11:25]} {[%emt 00:00:16]} 55. b4 {[%clk 00:00:30]} {[%emt 00:00:32]} axb4
{[%clk 00:11:23]} {[%emt 00:00:06]} 56. Rxb4 {[%clk 00:00:34]} {[%emt
00:00:01]} Re6 {[%emt 00:01:06]} 0-1

[Event "MCR rapid mládeže 2023 U16"]
[Site "Harachov, Czech Republic"]
[Date "2023.09.09"]
[Round "5.22"]
[White "Krivka, Matej"]
[Black "Rudlof, Adam"]
[Result "0-1"]
[TimeControl "20min+5s/move"]
[WhiteElo "1552"]
[BlackElo "1436"]

1. e4 {[%clk 00:20:08]} c5 {[%clk 00:20:10]} {[%emt 00:00:01]} 2. Nf3 {[%clk
00:20:10]} {[%emt 00:00:04]} Nc6 {[%clk 00:20:14]} 3. d4 {[%clk 00:20:10]}
{[%emt 00:00:05]} cxd4 {[%clk 00:20:18]} {[%emt 00:00:01]} 4. Nxd4 {[%clk
00:20:11]} {[%emt 00:00:04]} g6 {[%clk 00:20:22]} 5. Nc3 {[%clk 00:20:12]}
{[%emt 00:00:06]} Bg7 {[%clk 00:20:26]} 6. Be3 {[%clk 00:20:14]} {[%emt
00:00:03]} Nf6 {[%clk 00:20:30]} 7. Bc4 {[%clk 00:20:13]} {[%emt 00:00:07]} O-O
{[%clk 00:20:34]} {[%emt 00:00:02]} 8. Bb3 {[%clk 00:20:15]} {[%emt 00:00:03]}
d6 {[%clk 00:20:38]} 9. f3 {[%clk 00:20:16]} {[%emt 00:00:03]} Bd7 {[%clk
00:20:43]} {[%emt 00:00:01]} 10. Qd2 {[%clk 00:20:07]} {[%emt 00:00:14]} Rc8
{[%clk 00:20:47]} 11. O-O-O {[%clk 00:19:46]} {[%emt 00:00:27]} Nxd4 {[%clk
00:20:51]} {[%emt 00:00:01]} 12. Bxd4 {[%clk 00:19:48]} {[%emt 00:00:04]} b5
{[%clk 00:20:55]} 13. g4 {[%clk 00:18:11]} {[%emt 00:01:42]} a5 {[%clk
00:20:40]} {[%emt 00:00:21]} 14. a4 {[%clk 00:13:22]} {[%emt 00:04:53]} b4
{[%clk 00:20:28]} {[%emt 00:00:17]} 15. Nd5 {[%clk 00:12:39]} {[%emt 00:00:48]}
Nxd5 {[%clk 00:20:30]} {[%emt 00:00:03]} 16. exd5 {[%clk 00:11:22]} {[%emt
00:01:22]} Bxd4 {[%clk 00:20:16]} {[%emt 00:00:20]} 17. Qxd4 {[%clk 00:11:22]}
{[%emt 00:00:04]} Qe8 {[%clk 00:20:19]} {[%emt 00:00:02]} 18. Rd3 {[%clk
00:07:07]} {[%emt 00:04:21]} Bxa4 {[%clk 00:20:01]} {[%emt 00:00:23]} 19. h4
{[%clk 00:06:40]} {[%emt 00:00:31]} Bxb3 {[%clk 00:19:58]} {[%emt 00:00:08]} 20.
Rxb3 {[%clk 00:06:43]} {[%emt 00:00:02]} Qa4 {[%clk 00:19:42]} {[%emt
00:00:18]} 21. Rh2 {[%clk 00:04:31]} {[%emt 00:02:20]} Qxb3 {[%clk 00:19:25]}
{[%emt 00:00:22]} 0-1

[Event "MCR rapid mládeže 2023 U16"]
[Site "Harachov, Czech Republic"]
[Date "2023.09.09"]
[Round "5.23"]
[White "Nova, Anezka"]
[Black "Vancakova, Veronika"]
[Result "1/2-1/2"]
[TimeControl "20min+5s/move"]
[WhiteElo "1382"]
[BlackElo "1433"]

1. e4 {[%clk 00:20:09]} d6 {[%clk 00:20:09]} {[%emt 00:00:01]} 2. d4 {[%clk
00:20:12]} {[%emt 00:00:02]} Nf6 {[%clk 00:20:13]} {[%emt 00:00:01]} 3. Nc3
{[%clk 00:20:13]} {[%emt 00:00:04]} g6 {[%clk 00:20:16]} {[%emt 00:00:01]} 4.
f4 {[%clk 00:20:09]} {[%emt 00:00:10]} Bg7 {[%clk 00:20:17]} {[%emt 00:00:05]}
5. Nf3 {[%clk 00:19:57]} {[%emt 00:00:16]} O-O {[%clk 00:20:15]} {[%emt
00:00:07]} 6. Bd3 {[%clk 00:19:18]} {[%emt 00:00:45]} Nc6 {[%clk 00:20:14]}
{[%emt 00:00:06]} 7. O-O {[%clk 00:18:22]} {[%emt 00:01:00]} e5 {[%clk
00:19:45]} {[%emt 00:00:35]} 8. fxe5 {[%clk 00:17:41]} {[%emt 00:00:46]} dxe5
{[%clk 00:19:48]} {[%emt 00:00:01]} 9. d5 {[%clk 00:17:11]} {[%emt 00:00:35]}
Ne7 {[%clk 00:19:44]} {[%emt 00:00:10]} 10. Ne2 {[%clk 00:15:49]} {[%emt
00:01:26]} Ne8 {[%clk 00:18:49]} {[%emt 00:01:01]} 11. c4 {[%clk 00:14:49]}
{[%emt 00:01:04]} h6 {[%clk 00:16:47]} {[%emt 00:02:08]} 12. Bd2 {[%clk
00:13:24]} {[%emt 00:01:29]} f5 {[%clk 00:15:08]} {[%emt 00:01:44]} 13. Bc3
{[%clk 00:11:44]} {[%emt 00:01:44]} Qd6 {[%clk 00:14:13]} {[%emt 00:01:01]} 14.
Kh1 {[%clk 00:10:47]} {[%emt 00:01:02]} f4 {[%clk 00:14:02]} {[%emt 00:00:16]}
15. b4 {[%clk 00:09:40]} {[%emt 00:01:11]} b6 {[%clk 00:12:45]} {[%emt
00:01:23]} 16. c5 {[%clk 00:07:34]} {[%emt 00:02:11]} bxc5 {[%clk 00:12:45]}
{[%emt 00:00:05]} 17. bxc5 {[%clk 00:07:38]} {[%emt 00:00:01]} Qxc5 {[%clk
00:12:28]} {[%emt 00:00:22]} 18. Bxe5 {[%clk 00:07:01]} {[%emt 00:00:37]} Bxe5
{[%clk 00:11:37]} {[%emt 00:00:56]} 19. Nxe5 {[%clk 00:07:09]} {[%emt
00:00:02]} Qd6 {[%clk 00:11:11]} {[%emt 00:00:31]} 20. Nc4 {[%clk 00:06:57]}
{[%emt 00:00:16]} Qc5 {[%clk 00:10:00]} {[%emt 00:01:16]} 21. Nxf4 {[%clk
00:05:13]} {[%emt 00:01:50]} Nd6 {[%clk 00:08:13]} {[%emt 00:01:53]} 22. Rc1
{[%clk 00:04:44]} {[%emt 00:00:32]} Nxc4 {[%clk 00:07:45]} {[%emt 00:00:34]} 23.
Rxc4 {[%clk 00:04:39]} {[%emt 00:00:10]} Qd6 {[%clk 00:07:38]} {[%emt
00:00:12]} 24. Qd2 {[%clk 00:03:51]} {[%emt 00:00:49]} Ba6 {[%clk 00:07:24]}
{[%emt 00:00:23]} 25. Rc3 {[%clk 00:03:25]} {[%emt 00:00:32]} Bxd3 {[%clk
00:07:26]} {[%emt 00:00:03]} 26. Rxd3 {[%clk 00:03:26]} {[%emt 00:00:03]} g5
{[%clk 00:07:22]} {[%emt 00:00:09]} 27. Rg3 {[%clk 00:02:57]} {[%emt 00:00:34]}
Ng6 {[%clk 00:04:56]} {[%emt 00:02:32]} 28. Rc1 {[%clk 00:01:51]} {[%emt
00:01:10]} Qxf4 {[%clk 00:03:16]} {[%emt 00:01:46]} 29. Qxf4 {[%clk 00:01:19]}
{[%emt 00:00:37]} Rxf4 {[%clk 00:03:16]} {[%emt 00:00:04]} 30. Kg1 {[%clk
00:01:03]} {[%emt 00:00:20]} Raf8 {[%clk 00:02:42]} {[%emt 00:00:39]} 31. Re3
{[%clk 00:00:57]} {[%emt 00:00:12]} Re8 {[%clk 00:00:18]} {[%emt 00:02:30]} 32.
Rxc7 {[%clk 00:00:52]} {[%emt 00:00:09]} Rfxe4 {[%clk 00:00:16]} {[%emt
00:00:07]} 33. Rxe4 {[%clk 00:00:56]} {[%emt 00:00:01]} Rxe4 {[%clk 00:00:20]}
34. Rxa7 {[%clk 00:00:52]} {[%emt 00:00:09]} Rd4 {[%clk 00:00:19]} {[%emt
00:00:06]} 35. Ra5 {[%clk 00:00:45]} {[%emt 00:00:11]} Nf4 {[%clk 00:00:17]}
{[%emt 00:00:08]} 36. Ra6 {[%clk 00:00:29]} {[%emt 00:00:21]} Rxd5 {[%clk
00:00:15]} {[%emt 00:00:08]} 37. Rxh6 {[%clk 00:00:30]} {[%emt 00:00:03]} Rd2
{[%clk 00:00:11]} {[%emt 00:00:09]} 38. g3 {[%clk 00:00:18]} {[%emt 00:00:18]}
Ne2+ {[%clk 00:00:09]} {[%emt 00:00:06]} 39. Kf1 {[%clk 00:00:19]} {[%emt
00:00:03]} Kg7 {[%clk 00:00:09]} {[%emt 00:00:06]} 40. Ra6 {[%clk 00:00:20]}
{[%emt 00:00:04]} Nd4 {[%clk 00:00:10]} {[%emt 00:00:04]} 41. h3 {[%clk
00:00:11]} {[%emt 00:00:14]} Rd3 {[%clk 00:00:07]} {[%emt 00:00:08]} 42. Kf2
{[%clk 00:00:12]} {[%emt 00:00:04]} Nf5 {[%clk 00:00:07]} {[%emt 00:00:05]} 43.
g4 {[%clk 00:00:13]} {[%emt 00:00:04]} Ne7 {[%clk 00:00:07]} {[%emt 00:00:05]}
44. Ra7 {[%clk 00:00:17]} {[%emt 00:00:01]} Kf7 {[%clk 00:00:11]} {[%emt
00:00:01]} 45. Kg2 {[%clk 00:00:19]} {[%emt 00:00:03]} Rd2+ {[%clk 00:00:14]}
{[%emt 00:00:02]} 46. Kg3 {[%clk 00:00:20]} {[%emt 00:00:04]} Rd3+ {[%clk
00:00:17]} {[%emt 00:00:02]} 47. Kg2 {[%clk 00:00:23]} {[%emt 00:00:01]}
1/2-1/2

[Event "MCR rapid mládeže 2023 U16"]
[Site "Harachov, Czech Republic"]
[Date "2023.09.09"]
[Round "5.24"]
[White "Kusova, Nikola"]
[Black "Kratka, Tereza"]
[Result "1/2-1/2"]
[TimeControl "20min+5s/move"]
[WhiteElo "1247"]
[BlackElo "1147"]

1. e4 {[%clk 00:20:29]} {[%emt 00:00:01]} c5 {[%clk 00:20:29]} {[%emt
00:00:01]} 2. Nf3 {[%clk 00:20:32]} {[%emt 00:00:02]} Nc6 {[%clk 00:20:33]}
{[%emt 00:00:01]} 3. d4 {[%clk 00:20:36]} {[%emt 00:00:01]} cxd4 {[%clk
00:20:37]} {[%emt 00:00:02]} 4. Nxd4 {[%clk 00:20:39]} {[%emt 00:00:01]} g6
{[%clk 00:20:40]} {[%emt 00:00:01]} 5. Nc3 {[%clk 00:20:41]} {[%emt 00:00:05]}
Bg7 {[%clk 00:20:43]} {[%emt 00:00:01]} 6. Be3 {[%clk 00:20:43]} {[%emt
00:00:02]} Nf6 {[%clk 00:20:46]} {[%emt 00:00:02]} 7. f3 {[%clk 00:20:46]}
{[%emt 00:00:03]} O-O {[%clk 00:20:32]} {[%emt 00:00:19]} 8. Qd2 {[%clk
00:20:34]} {[%emt 00:00:17]} Qb6 {[%clk 00:20:22]} {[%emt 00:00:15]} 9. O-O-O
{[%clk 00:20:07]} {[%emt 00:00:32]} d6 {[%clk 00:20:00]} {[%emt 00:00:26]} 10.
Ne6 {[%clk 00:20:01]} {[%emt 00:00:09]} Qa5 {[%clk 00:19:35]} {[%emt 00:00:32]}
11. Nxf8 {[%clk 00:20:03]} {[%emt 00:00:04]} Kxf8 {[%clk 00:19:39]} {[%emt
00:00:01]} 12. Kb1 {[%clk 00:19:37]} {[%emt 00:00:31]} Be6 {[%clk 00:19:27]}
{[%emt 00:00:17]} 13. g4 {[%clk 00:18:50]} {[%emt 00:00:51]} a6 {[%clk
00:18:59]} {[%emt 00:00:34]} 14. h4 {[%clk 00:17:44]} {[%emt 00:01:10]} h5
{[%clk 00:18:45]} {[%emt 00:00:19]} 15. gxh5 {[%clk 00:16:52]} {[%emt
00:00:58]} Nxh5 {[%clk 00:18:46]} {[%emt 00:00:03]} 16. Bh6 {[%clk 00:16:49]}
{[%emt 00:00:08]} b5 {[%clk 00:18:32]} {[%emt 00:00:20]} 17. Bxg7+ {[%clk
00:16:06]} {[%emt 00:00:48]} Kxg7 {[%clk 00:18:35]} {[%emt 00:00:02]} 18. Nd5
{[%clk 00:14:59]} {[%emt 00:01:12]} Qxd2 {[%clk 00:17:57]} {[%emt 00:00:42]} 19.
Rxd2 {[%clk 00:15:01]} {[%emt 00:00:03]} Ne5 {[%clk 00:17:24]} {[%emt
00:00:38]} 20. Be2 {[%clk 00:13:28]} {[%emt 00:01:38]} Ng3 {[%clk 00:17:15]}
{[%emt 00:00:15]} 21. Rhd1 {[%clk 00:12:36]} {[%emt 00:00:57]} Bxd5 {[%clk
00:16:55]} {[%emt 00:00:24]} 22. exd5 {[%clk 00:12:39]} {[%emt 00:00:03]} Nxe2
{[%clk 00:16:53]} {[%emt 00:00:06]} 23. Rxe2 {[%clk 00:12:43]} {[%emt
00:00:02]} Nxf3 {[%clk 00:16:50]} {[%emt 00:00:08]} 24. Rxe7 {[%clk 00:12:45]}
{[%emt 00:00:03]} Nxh4 {[%clk 00:16:51]} {[%emt 00:00:03]} 25. Rf1 {[%clk
00:11:13]} {[%emt 00:01:37]} Nf5 {[%clk 00:16:49]} {[%emt 00:00:08]} 26. Rb7
{[%clk 00:11:10]} {[%emt 00:00:07]} Rc8 {[%clk 00:16:00]} {[%emt 00:00:54]} 27.
Ra7 {[%clk 00:10:38]} {[%emt 00:00:37]} Rc5 {[%clk 00:16:01]} {[%emt 00:00:04]}
28. c3 {[%clk 00:10:12]} {[%emt 00:00:32]} Rxd5 {[%clk 00:15:53]} {[%emt
00:00:13]} 29. Rxa6 {[%clk 00:10:15]} {[%emt 00:00:02]} Ne3 {[%clk 00:15:45]}
{[%emt 00:00:13]} 30. Re1 {[%clk 00:10:17]} {[%emt 00:00:02]} Nc4 {[%clk
00:15:41]} {[%emt 00:00:10]} 31. Ra7 {[%clk 00:09:57]} {[%emt 00:00:26]} Rd3
{[%clk 00:15:20]} {[%emt 00:00:25]} 32. Rae7 {[%clk 00:08:53]} {[%emt
00:01:09]} Rd2 {[%clk 00:15:05]} {[%emt 00:00:20]} 33. b3 {[%clk 00:08:08]}
{[%emt 00:00:51]} Na3+ {[%clk 00:14:50]} {[%emt 00:00:19]} 34. Kc1 {[%clk
00:08:11]} {[%emt 00:00:03]} Rxa2 {[%clk 00:14:32]} {[%emt 00:00:22]} 35. R7e2
{[%clk 00:07:05]} {[%emt 00:01:11]} Rxe2 {[%clk 00:13:54]} {[%emt 00:00:43]} 36.
Rxe2 {[%clk 00:07:07]} {[%emt 00:00:03]} b4 {[%clk 00:13:43]} {[%emt 00:00:16]}
37. c4 {[%clk 00:07:05]} {[%emt 00:00:07]} Kf6 {[%clk 00:13:29]} {[%emt
00:00:18]} 38. Rf2+ {[%clk 00:06:55]} {[%emt 00:00:16]} Ke6 {[%clk 00:13:31]}
{[%emt 00:00:03]} 39. Re2+ {[%clk 00:06:49]} {[%emt 00:00:11]} Kf6 {[%emt
00:00:34]} 40. Rf2+ {[%emt 00:00:07]} Kg7 {[%emt 00:00:01]} 1/2-1/2

[Event "MCR rapid mládeže 2023 U16"]
[Site "Harachov, Czech Republic"]
[Date "2023.09.09"]
[Round "5.25"]
[White "Jakubse, Tamae Severina"]
[Black "Hujova, Tess"]
[Result "1-0"]
[TimeControl "20min+5s/move"]
[WhiteElo "1223"]
[BlackElo "1104"]

1. e4 {[%clk 00:20:08]} {[%emt 00:00:01]} e6 {[%clk 00:20:08]} {[%emt
00:00:02]} 2. d4 {[%clk 00:20:11]} {[%emt 00:00:03]} b6 {[%clk 00:20:10]}
{[%emt 00:00:02]} 3. a3 {[%clk 00:20:10]} {[%emt 00:00:05]} Bb7 {[%clk
00:20:11]} {[%emt 00:00:04]} 4. Nc3 {[%clk 00:20:14]} {[%emt 00:00:02]} c5
{[%clk 00:20:00]} {[%emt 00:00:16]} 5. Nf3 {[%clk 00:19:44]} {[%emt 00:00:34]}
cxd4 {[%clk 00:20:01]} {[%emt 00:00:04]} 6. Nxd4 {[%clk 00:19:44]} {[%emt
00:00:05]} Bc5 {[%clk 00:20:03]} {[%emt 00:00:03]} 7. Nb3 {[%clk 00:19:25]}
{[%emt 00:00:25]} Be7 {[%clk 00:19:18]} {[%emt 00:00:50]} 8. Bd3 {[%clk
00:18:31]} {[%emt 00:00:59]} Nf6 {[%clk 00:19:10]} {[%emt 00:00:13]} 9. O-O
{[%clk 00:18:00]} {[%emt 00:00:36]} O-O {[%clk 00:18:49]} {[%emt 00:00:25]} 10.
e5 {[%clk 00:17:40]} {[%emt 00:00:26]} Nd5 {[%clk 00:18:48]} {[%emt 00:00:05]}
11. Nxd5 {[%clk 00:16:59]} {[%emt 00:00:47]} Bxd5 {[%clk 00:18:48]} {[%emt
00:00:05]} 12. Qh5 {[%clk 00:16:04]} {[%emt 00:00:59]} g6 {[%clk 00:18:10]}
{[%emt 00:00:44]} 13. Qg4 {[%clk 00:14:30]} {[%emt 00:01:37]} Bxb3 {[%clk
00:15:05]} {[%emt 00:03:12]} 14. cxb3 {[%clk 00:14:28]} {[%emt 00:00:08]} Nc6
{[%clk 00:15:05]} {[%emt 00:00:03]} 15. f4 {[%clk 00:13:14]} {[%emt 00:01:19]}
Nd4 {[%clk 00:14:27]} {[%emt 00:00:42]} 16. b4 {[%clk 00:12:24]} {[%emt
00:00:55]} Nb3 {[%clk 00:11:12]} {[%emt 00:03:22]} 17. Rb1 {[%clk 00:12:10]}
{[%emt 00:00:18]} Nxc1 {[%clk 00:11:03]} {[%emt 00:00:15]} 18. Rbxc1 {[%clk
00:12:02]} {[%emt 00:00:13]} h5 {[%clk 00:10:29]} {[%emt 00:00:38]} 19. Qf3
{[%clk 00:10:56]} {[%emt 00:01:10]} Re8 {[%clk 00:09:25]} {[%emt 00:01:11]} 20.
Qb7 {[%clk 00:10:14]} {[%emt 00:00:47]} Bf8 {[%clk 00:08:43]} {[%emt 00:00:46]}
21. Rc7 {[%clk 00:09:47]} {[%emt 00:00:32]} Re7 {[%clk 00:08:12]} {[%emt
00:00:36]} 22. Be4 {[%clk 00:08:43]} {[%emt 00:01:09]} d5 {[%clk 00:06:47]}
{[%emt 00:01:30]} 23. exd6 {[%clk 00:08:01]} {[%emt 00:00:48]} Rxc7 {[%clk
00:06:47]} {[%emt 00:00:05]} 24. dxc7 {[%clk 00:07:22]} {[%emt 00:00:44]} Qc8
{[%clk 00:06:48]} {[%emt 00:00:04]} 25. Qxa8 {[%clk 00:07:18]} {[%emt
00:00:09]} Qxa8 {[%clk 00:06:49]} {[%emt 00:00:04]} 26. Bxa8 {[%clk 00:07:22]}
{[%emt 00:00:02]} Bg7 {[%clk 00:06:47]} {[%emt 00:00:06]} 27. c8=Q+ {[%clk
00:07:22]} {[%emt 00:00:04]} 1-0